Cogmind - Beta 16 @@@ ROGUE MODE // 2026.02.03 @ 12:48:10 Player: AngelSpirit Result: Destroyed by NY-JZL(R) with Subdweller Laser Performance ------------- Evolutions (0) 0 Regions Visited (3) 600 Robots Destroyed (32) 160 Value Destroyed (841) 841 Prototype IDs (4) 80 Alien Tech Used (0) 0 Bonus (14) 14 TOTAL SCORE: 1695 Bonus ------- Follower Combat Kills 14 Cogmind --------- Core Integrity 0/250 Matter 168/300 Energy 250/250 System Corruption 0% Temperature Warm (172) Movement Rolling (140) Ox4 Location -10/Subcaves Parts ------- > --- POWER (1) -------- Ion Engine > --- PROPULSION (2) --- Wheel Wheel > --- UTILITY (2) ------ Huge Storage Unit Hardened Medium Armor Plating > --- WEAPON (2) ------- Subdweller Machine Gun Battle Cannon > --- INVENTORY (25) --- Meta Core Light Treads Light Treads Light Treads Wheel Compact Wheel Subdweller Monowheel Makeshift Flight Unit Large Storage Unit Advanced Visual Processing Unit Sensor Array Seismic Detector Light Armor Plating Light Armor Plating Light Armor Plating Light Armor Plating Light Armor Plating Trap Extractor (1/4 Shock) Improved Assault Rifle Improved Assault Rifle Grenade Launcher Datajack Multitool Mace Peak State ------------ > --- POWER ------------ Ion Engine > --- PROPULSION ------- Wheel Wheel > --- UTILITY ---------- Huge Storage Unit Hardened Medium Armor Plating > --- WEAPON ----------- Improved Assault Rifle Improved Assault Rifle > --- INVENTORY -------- Meta Core Light Treads Light Treads Light Treads Wheel Compact Wheel Subdweller Monowheel Makeshift Flight Unit Large Storage Unit Advanced Visual Processing Unit Sensor Array Seismic Detector Light Armor Plating Light Armor Plating Light Armor Plating Light Armor Plating Light Armor Plating Trap Extractor Subdweller Machine Gun Battle Cannon Grenade Launcher Datajack Mace [Rating: 17] Favorites ----------- Power Ion Engine Engine Ion Engine Propulsion Wheel Wheel Wheel Utility Seismic Detector Device Seismic Detector Storage Huge Storage Unit Protection Hardened Medium Armor Plating Weapon Improved Assault Rifle Ballistic Gun Improved Assault Rifle Ballistic Cannon Light Cannon Launcher Grenade Launcher Impact Weapon Mace Special Melee Weapon Datajack Build | -11 -10 -10 -10 ------- Run | Yrd Mat Min Sub Slots Evolved . | . . . . Power . | . . . . Propulsion . | . . . . Utility . | . . . . Weapon . | . . . . Parts Attached 31 | 7 14 2 8 Power 4 | 1 2 . 1 Engine 4 | 1 2 . 1 Core . | . . . . Reactor . | . . . . Propulsion 4 | 2 2 . . Treads . | . . . . Leg . | . . . . Wheel 4 | 2 2 . . Hover . | . . . . Flight . | . . . . Utility 9 | 2 5 1 1 Device 2 | 1 1 . . Storage 4 | 1 3 . . Processor . | . . . . Hackware . | . . . . Protection 3 | . 1 1 1 Artifact . | . . . . Weapon 14 | 2 5 1 6 Energy Gun . | . . . . Energy Cannon . | . . . . Ballistic Gun 8 | 2 1 1 4 Ballistic Cannon 2 | . 1 . 1 Launcher 1 | . . . 1 Special Weapon . | . . . . Impact Weapon 2 | . 2 . . Slashing Weapon . | . . . . Piercing Weapon . | . . . . Special Melee Weapon 1 | . 1 . . Unidentified Prototypes 1 | . 1 . . Parts Lost 2 | . . . 2 Power 1 | . . . 1 Propulsion 1 | . . . 1 Utility . | . . . . Weapon . | . . . . Highest Loss Streak 2 | . . . 2 To Critical Strikes . | . . . . Average Backups 19 | . 14 24 23 Power . | . 1 1 . Propulsion 5 | . 4 6 6 Utility 8 | . 5 11 11 Weapon 3 | . 3 4 4 Tool/Special . | . . . . Unused Backups 17 | . 1 . 16 Power 1 | . 1 . . Propulsion 6 | . . . 6 Utility 8 | . . . 8 Weapon . | . . . . Tool/Special 2 | . . . 2 Average Slot Usage (%) 99 | . 99 100 99 Engine 13 | . 14 14 13 Wheel 27 | . 28 28 27 Device 12 | . 13 13 9 Storage 14 | . 14 14 14 Protection 1 | . . . 4 Ballistic Gun 13 | . 6 19 18 Ballistic Cannon 4 | . 6 . 9 Impact Weapon 8 | . 13 8 . Peak Build Rating 17 | 7 13 16 17 Average Rating 11 | 5 9 13 13 On Entrance 8 | . 7 13 14 Avg Prop Armor Cover (%) . | . . . . Naked Turns . | . . . . Heaviest Build 100 | 14 92 99 100 Greatest Support 26 | 26 26 20 20 Greatest Overweight (x) 4 | . 4 4 4 Average Overweight (x) 2 | . 1 4 4 Largest Inventory Capacity 25 | 8 25 25 25 Average Capacity 21 | 7 17 25 25 Most Carried 25 | 1 23 25 25 Average Carried 19 | . 14 24 23 Final Capacity 25 | 8 25 25 25 Final Carried 24 | 1 23 24 24 Class Distribution -------------------- 100% | Mutant Dominant Class ---------------- Mutant | -10/Materials Mutant | -10/Mines Mutant | -10/Subcaves Resources | -11 -10 -10 -10 ----------- Run | Yrd Mat Min Sub Matter Collected 1016 | 253 307 170 286 Remotely . | . . . . Salvage Created 942 | 65 578 159 140 Parts 53 | 12 24 6 11 Haulers Intercepted 2 | . 2 . . Recyclers Shooed 1 | . 1 . . Parts Field Recycled . | . . . . Retrieved Matter . | . . . . Parts Self-Destructed 5 | . . . 5 Prevented . | . . . . Parts Restored . | . . . . Kills | -11 -10 -10 -10 ------- Run | Yrd Mat Min Sub Combat Hostiles Destroyed 22 | . 13 4 5 Melee 6 | . 5 1 . Guns 8 | . 3 2 3 Cannons 2 | . 1 . 1 AOE 1 | . . . 1 Classes Destroyed 8 | 1 5 . 2 Tunneler 4 | 3 1 . . Hauler 2 | . 2 . . Operator 1 | . 1 . . Watcher 3 | . 3 . . Swarmer 3 | . 3 . . Grunt 14 | . 10 4 . Artisan 1 | . . . 1 Subdweller 5 | . . . 5 Best Kill Streak 5 | 3 5 2 2 Combat Bots Only 5 | . 5 2 2 Max Kills in Single Turn 2 | 2 1 2 1 Gunslinging 1 | . . 1 . Exploded 1 | . . . 1 Melee 1 | . 1 1 . Uniques/NPCs Destroyed . | . . . . Combat | -11 -10 -10 -10 -------- Run | Yrd Mat Min Sub Hostile Shots Fired 107 | . 52 11 44 Missed 29 | . 16 3 10 Hits 78 | . 36 8 34 Projectile 78 | . 36 8 34 Critical Strikes 2 | . . . 2 Damage Taken 1170 | . 377 89 704 Core 261 | . 91 12 158 Absorbed by Shields . | . . . . Core Remaining (%) 100 | 100 . . . Volleys Fired 76 | 4 29 3 40 Largest 2 | 2 2 2 2 Hottest 63 | 40 40 46 63 Shots Fired 128 | 8 42 6 72 Gun 103 | 8 31 6 58 Cannon 24 | . 11 . 13 Launcher 1 | . . . 1 Special . | . . . . Kinetic 127 | 8 42 6 71 Thermal . | . . . . Explosive 1 | . . . 1 Electromagnetic . | . . . . Robot Hit Streak 16 | 5 9 5 16 Robot Miss Streak 6 | 1 6 1 2 Penetration Max . | . . . . Secondary Targets 1 | . . 1 . Max Gunslinging Chain 1 | . . 1 . Shots Hit Robots 129 | 5 62 9 53 Core Hits 36 | 4 17 4 11 Critical Kills 3 | . 1 1 1 Critical Parts Destroyed 5 | . 4 . 1 Critical Strikes 9 | . 5 1 3 Destroy 4 | . 1 . 3 Smash 5 | . 4 1 . Melee Attacks 57 | . 50 7 . Impact 57 | . 50 7 . Slashing . | . . . . Piercing . | . . . . Sneak Attacks 7 | . 7 . . Combat Hostiles 2 | . 2 . . Follow-up Attacks 3 | . 3 . . Damage Inflicted 2887 | 57 1669 205 956 Guns 1121 | 57 239 81 744 Cannons 207 | . 69 . 138 Explosions 74 | . . . 74 Melee 1485 | . 1361 124 . Ramming . | . . . . Kinetic 1328 | 57 308 81 882 Thermal . | . . . . Explosive 74 | . . . 74 Electromagnetic . | . . . . Impact 1485 | . 1361 124 . Slashing . | . . . . Piercing . | . . . . Highest Corruption . | . . . . Average Corruption . | . . . . Corruption Purged . | . . . . Corruption Blocked . | . . . . Overload Shots . | . . . . Overflow Damage 310 | . 308 2 . Projectiles 17 | . 17 . . Explosions . | . . . . Melee 293 | . 291 2 . Knockbacks 7 | . 5 . 2 Impact 4 | . 4 . . Kinetic 3 | . 1 . 2 Secondary . | . . . . Self-Inflicted Damage . | . . . . Shots . | . . . . Rammed . | . . . . Targets Rammed . | . . . . Kicked . | . . . . Crushed . | . . . . Highest Temperature 285 | . 12 30 285 Average Temperature 94 | . 8 21 224 Received Heat Transfer 668 | . 177 51 440 Siege Activations . | . . . . Martial Activations . | . . . . Shielding Activations . | . . . . Robots Disrupted . | . . . . Combat Hostiles . | . . . . Robots Corrupted 8 | . 7 1 . Combat Hostiles 5 | . 4 1 . Parts Fried 6 | . 6 . . Impact Corruptions 18 | . 17 1 . Robots Melted . | . . . . Combat Hostiles . | . . . . Parts Melted . | . . . . Heat Transferred . | . . . . Parts Sabotaged . | . . . . Parts Stolen . | . . . . Parts Stripped . | . . . . Power Chain Reactions . | . . . . Alert | -11 -10 -10 -10 ------- Run | Yrd Mat Min Sub Maximum Alert Level . | . . . . Low Security (%) 100 | 100 100 100 . Level 1 . | . . . . Level 2 . | . . . . Level 3 . | . . . . Level 4 . | . . . . Level 5 . | . . . . High Security . | . . . . Max Security . | . . . . Peak Influence 192 | 15 192 53 . Initial 10 | . 9 10 . Average 45 | 2 74 9 . Influence Increases 658 | 15 489 154 . Destroy 0b10 Robot/C 380 | . 260 120 . Destroy 0b10 Robot/NC 50 | 15 35 . . Destroy Leader 110 | . 80 30 . Allied During Kill 3 | . . 3 . Successful Hack 22 | . 22 . . Select Force Hacks 30 | . 30 . . Destroy Structure 3 | . 2 1 . Partial Spotted 15 | . 15 . . Lose Combat Pursuer 45 | . 45 . . Influence Decreases 658 | . 477 146 35 Entered New Map 42 | . 6 17 19 Time Decay 616 | . 471 129 16 Squads Dispatched 6 | . 5 1 . Investigation 6 | . 5 1 . Extermination . | . . . . Reinforcement . | . . . . Assault . | . . . . Garrison . | . . . . Intercept . | . . . . Searches Triggered . | . . . . Construction Impeded . | . . . . Haulers Reinforced . | . . . . Active Scanning Responses . | . . . . Cargo Convoy Interrupts . | . . . . Stealth | -11 -10 -10 -10 --------- Run | Yrd Mat Min Sub Distress Signals 1 | . 1 . . Communications Jammed . | . . . . Distress Signals . | . . . . Times Spotted 32 | . 20 4 8 Peak Tracking Total 5 | . 5 2 2 Tactical Retreats 2 | . 2 . . Traps | -11 -10 -10 -10 ------- Run | Yrd Mat Min Sub Traps Triggered 2 | . 2 . . Indirectly . | . . . . Trap Hack Attempts 25 | . 25 . . Triggered . | . . . . Disarmed . | . . . . Reprogrammed 1 | . 1 . . Reused . | . . . . Traps Extracted 1 | . 1 . . Installed . | . . . . Triggered . | . . . . Most Traps Carried 1 | . 1 1 1 Machines | -11 -10 -10 -10 ---------- Run | Yrd Mat Min Sub Machines Disabled 1 | . . . 1 Max in Single Turn 1 | . . . 1 Machines Repaired . | . . . . Machines Dismantled . | . . . . Machines Sabotaged . | . . . . Overloaded Fab Kills . | . . . . Hacking | -11 -10 -10 -10 --------- Run | Yrd Mat Min Sub Machines Accessed 12 | . 11 1 . Terminals 8 | . 8 . . Fabricators . | . . . . Repair Stations 1 | . 1 . . Recycling Units 2 | . 2 . . Scanalyzers . | . . . . Garrison Access . | . . . . Total Hacks 41 | . 40 1 . Successful 19 | . 18 1 . Failed 21 | . 21 . . Catastrophic 2 | . 2 . . Database Lockouts 1 | . 1 . . Manual 26 | . 26 . . Terminals 33 | . 33 . . Fabricators . | . . . . Repair Stations 3 | . 3 . . Recycling Units 4 | . 4 . . Scanalyzers . | . . . . Garrison Access . | . . . . Terminal Hacks 6 | . 5 1 . Robot Analysis 1 | . 1 . . Prototype ID Bank 2 | . 2 . . Open Door 1 | . . 1 . Repair Station Index 1 | . 1 . . Zone Layout 1 | . 1 . . Fabricator Hacks . | . . . . Repair Station Hacks . | . . . . Recycling Unit Hacks 2 | . 2 . . Retrieve Components 2 | . 2 . . Scanalyzer . | . . . . Garrison Access Hacks . | . . . . Unauthorized Hacks 11 | . 11 . . Terminals 10 | . 10 . . Botnet 5 | . 5 . . Skim 5 | . 5 . . Fabricators . | . . . . Repair Stations . | . . . . Recycling Units 1 | . 1 . . Tunnel 1 | . 1 . . Scanalyzers . | . . . . Garrison Access . | . . . . Data Cores Recovered 1 | . 1 . . Used 1 | . 1 . . Hacking Detections 9 | . 9 . . Full Trace Events 2 | . 2 . . Feedback Events . | . . . . Feedback Blocked . | . . . . Robot Schematics Acquired . | . . . . Robots Built . | . . . . Authchips . | . . . . Time . | . . . . Total Robot Build Rating . | . . . . Part Schematics Acquired . | . . . . Parts Built . | . . . . Authchips . | . . . . Time . | . . . . Total Part Build Rating . | . . . . Part Studies Acquired . | . . . . Parts Repaired . | . . . . Time . | . . . . Parts Recycled . | . . . . Recycled Matter . | . . . . Retrieved Matter . | . . . . Retrieved Components 4 | . 4 . . Parts Scanalyzed . | . . . . Part Schematics Acquired . | . . . . Parts Damaged . | . . . . Bothacking | -11 -10 -10 -10 ------------ Run | Yrd Mat Min Sub Used RIF Installer . | . . . . Robots Hacked . | . . . . Non-combat . | . . . . Combat . | . . . . Robot Hacks Applied . | . . . . Relay Couplers Released . | . . . . Fabnet Peak Effective % . | . . . . Robots Rewired . | . . . . Allies Hacked . | . . . . Hacks Repelled . | . . . . Allies | -11 -10 -10 -10 -------- Run | Yrd Mat Min Sub Total Allies 1 | . . 1 . Largest Group 1 | . . 1 1 Highest-Rated Group 31 | . . 31 31 Highest-Rated Ally 31 | . . 31 31 Total Orders . | . . . . Ally Attacks 4 | . . 4 . Total Damage 42 | . . 42 . Kills 2 | . . 2 . Allies Corrupted . | . . . . Allies Melted . | . . . . Intel | -11 -10 -10 -10 ------- Run | Yrd Mat Min Sub Active Infowar (turns) 2597 | 3 1176 918 500 Seismic 2597 | 3 1176 918 500 Robot Analysis Total 1 | . 1 . . Derelict Logs Recovered 2 | . . 1 1 Drone Launches . | . . . . Drone Recoveries . | . . . . Exploration | -11 -10 -10 -10 ------------- Run | Yrd Mat Min Sub Turns Passed 3001 | 59 1260 970 712 Spaces Moved 1800 | 39 796 599 366 Core 5 | 5 . . . Treads . | . . . . Legs . | . . . . Wheels 1795 | 34 796 599 366 Hover . | . . . . Flight . | . . . . Fastest Speed 50 | 50 80 140 140 Average Speed 125 | 85 110 140 140 Slowest Speed 140 | 100 140 140 140 Overloaded Moves . | . . . . Propulsion Burnouts . | . . . . Robots Hopped . | . . . . Potential Cave-ins . | . . . . Cave-ins Triggered . | . . . . Exploration Rate (%) 55 | 4 98 96 23 Regions Visited 3 Branch Regions 2 Pre-discovered Areas 1 | . 1 . . Known Exits Taken 2 | . 1 1 . Unknown Exits Taken 1 | 1 . . . Scrap Searched 4 | . . 1 3 Spaces Dug 3 | . 2 1 . Terrain Destroyed 13 | . 2 1 10 Melee 3 | . 2 1 . Projectile 1 | . . . 1 AOE 9 | . . . 9 Terrain Rammed . | . . . . Walls Destroyed . | . . . . Machines Disabled . | . . . . Actions | -11 -10 -10 -10 --------- Run | Yrd Mat Min Sub Total 2305 | 53 1055 710 487 Wait 245 | 3 101 90 51 Move 1797 | 38 795 598 366 Hop . | . . . . Pick Up 33 | 1 24 3 5 Fast Attach 13 | 7 4 . 2 Attach 6 | . 2 . 4 Detach 2 | . 2 . . Swap 39 | . 18 7 14 Drop 17 | . 10 2 5 Fire 76 | 4 29 3 40 Melee 52 | . 45 7 . Ram . | . . . . Kick . | . . . . Crush . | . . . . Escape Stasis . | . . . . Rewire . | . . . . Trap 25 | . 25 . . Miscellaneous . | . . . . Route ------- -11/Scrapyard -10/Materials (discovered 6 exits: *Mat x3 / *Min x2 / Sub) -10/Mines (discovered 4 exits: *Mat x2 / [*Exi] / *Sub) -10/Subcaves History --------- Turn | Location | Event 11 | -11/Scrapyard | Discovered new exit (range 16) 60 | -11/Scrapyard | Entered Materials 311 | -10/Materials | Build established: Mutant 466 | -10/Materials | Central database locked down 555 | -10/Materials | Learned location of 1 exit from Recycling 584 | -10/Materials | Discovered new exit (range 13) 698 | -10/Materials | Identified exit to Subcaves 726 | -10/Materials | Discovered new exit (range 13) 752 | -10/Materials | Learned Storage stockpile data 798 | -10/Materials | Learned Storage security intel 877 | -10/Materials | Identified exit to Mines 877 | -10/Materials | Identified exit to Materials 929 | -10/Materials | Learned Storage trap positions 1320 | -10/Materials | Entered Mines 1350 | -10/Mines | Met a Derelict bent on vengeance 1643 | -10/Mines | Met a Derelict shopkeep closing up shop 1672 | -10/Mines | Learned 2 Materials zone layouts 1920 | -10/Mines | Discovered exit to Materials (range 6) 1949 | -10/Mines | Deemed a non-threat by the Exiles lab entrance 1949 | -10/Mines | Discovered new exit (range 5) 2015 | -10/Mines | Discovered exit to Materials (range 10) 2040 | -10/Mines | Received a Mining Laser from a helpful Derelict 2283 | -10/Mines | Discovered exit to Subcaves (range 6) 2290 | -10/Mines | Entered Subcaves 2290 | -10/Subcaves | Accompanied by 1 ally 2355 | -10/Subcaves | Core integrity fell below 50% 2500 | -10/Subcaves | Core integrity fell below 20% 2744 | -10/Subcaves | Visited 4L-MR0's lab 2753 | -10/Subcaves | Learned Materials stockpile data 2772 | -10/Subcaves | Found Prototype Power Core 3002 | -10/Subcaves | Destroyed by NY-JZL(R) with Subdweller Laser Last Messages --------------- 02772_ Acquired Prototype Power Core. 02792_ Acquired 21 matter. 02794_ Dropped Lgt. Armor Plating. 02796_ Acquired Mak. Flight Unit. 02831_ S8-JA1(R) knocked back. 02834_ Sub. Machine Gun shoots sparks and powers down. 02837_ S8-JA1(R) destroyed. 02839_ Dropped Broken Sub. Machine Gun. 02840_ Dropped Hrd. Medium Armor Plating. 02853_ Acquired 18 matter. 02855_ Acquired 11 matter. 02866_ 4W-R2V(u) tweaks Twisted Machinery. 02868_ 4W-R2V(u) cries out in pain. 02868_ 4W-R2V(u) destroyed. 02872_ Acquired Multitool. 02876_ Acquired 11 matter. 02991_ Critical hit (Meltdown: +290). 02996_ YG-0DK(R) knocked back. 02999_ NY-JZL(R) suffers critical hit (Destroy). Map ----- +----------------------------------------------------+ | | | | | ?????????????????????????????????????????????????? | | ?????????????????????????????????????????????????? | | ###########??????????????????????????????????????? | | "#"""""" "#??????????????????????????????????????? | | "X" "#??????????????????????????????????????? | | # #####????????????????????????????????????? | | # + "#????????????????????????????????????? | | ##########" #????????????????????????????????????? | | ##????#### "#????????????????????????????????????? | | ""#####"% "#????????????????????????????????????? | | #!! "#????????????????????????????????????? | | "## "##????????????????????????????????????? | | ?#" ##"""##?????????????????????????????????????? | | ## "#######????????????????????????????????????? | | " ###&#????????#############???????????????? | | ![ ! ##???##### ## ## #???????????????? | | #########&&##### #????????????????? | | ##??#### ## ##?##????????????? | | #??# ### ## #????????????? | | ##?## "" ### ### #?????????????? | | #?## "" #?## ##????????????? | | ### % #??##### ##???????????? | | ## ## = ## ##??????## #???????????? | | #?## # = "### "" @#????????###???????????? | | ???# ## ####?## "" ##??????????????????????? | | ???# ###"""?????##" R##???????????????????????? | | ???# ##?#"""??????#" #????????????????????????? | | ???#####??""""?????##" #????????????????????????? | | ?????????"""""?????#" ##????????????????????????? | | ?????????? """"????## ##????????????????????????? | | ????????????????"#### #????????????????????????? | | ????????????????"""""" "#????????????????????????? | | ???????????????""" """ #??????????????????????? | | ???????????????"""#### "" ????????????????????? | | ????????????????#????# "" ???????????????????? | | ?????????????????????# "" #???????????????????? | | ?????????????????????# " ###???????????????????? | | ?????????????????????# ###?????????????????????? | | ?????????????????????# " #???????????????????????? | | ????????????????????? #???????????????????????? | | ????????????????????? #???????????????????????? | | ????????????????????? ???????????????????????? | | ????????????????????? ???????????????????????? | | ????????????????????? ? ???????????????????????? | | ????????????????????? ?????????????????????????? | | ?????????????????????????????????????????????????? | | ?????????????????????????????????????????????????? | | ?????????????????????????????????????????????????? | +----------------------------------------------------+ Best States ------------- Heat Dissipation 25 Energy Generation 10 Energy Capacity 250 Matter Stores 300 Matter Capacity 300 Sight Range 16 Terrain Scan Density 10 Armor Coverage 225 Evasion (%) 44 Item Schematics ----------------- None Robot Schematics ------------------ None Fabricated ------------ Nothing Repaired ---------- Nothing Studied --------- None Alien Tech Used ----------------- None Achievements -------------- None Challenges ------------ None Game ------ Seed TerrabombNovaKatana Manual? 0 Play Time 00:21:35 Cumulative 511.5 hours Start 2026.02.03 @ 12:26:42 End 2026.02.03 @ 12:48:10 Sessions 1 Manual Loads 0 Difficulty Rogue Special Mode None Game No. 173 Rogue 173 Adventurer 0 Explorer 0 Win Type - Total 17 Types 8/0/5/1/0/0/0/1/0/2 Lore% 90 Gallery% 86 Achievement% 74 Wizard Run 0 Options --------- Layout 1 ASCII 0 Keyboard 0 Movement Mouse Keybinds 0 Fullscreen 2 Font 32/SmallcapsGlow Map View 50x35 Zoom Use 0% Tactical HUD 1 Map Filters NONE Filters NONE Steam 1 RUN: 97f9c6a9-aee3-4759-9636-b39baf64d489